Workbook

Sheet Sheet1
B1: Variables
A2: MG EV Excite | C2: Unit | E2: Year 0 | F2: Year 1 | G2: Year 2 | H2: Year 3 | I2: Year 4 | J2: Year 5 | K2: Year 6 | L2: Year 7 | M2: Year 8 | N2: Year 9 | O2: Year 10 | P2: Year 11 | Q2: Year 12 | R2: Year 13 | S2: Year 14 | T2: Year 15
A3: Drive away new car price | B3: 39000 | C3: $
A4: GST component of new car | B4: 3900 | C4: $ | D4: Licensing costs | E4: 815 | F4: 815 | G4: 815 | H4: 815 | I4: 815 | J4: 815 | K4: 815 | L4: 815 | M4: 815 | N4: 815 | O4: 815 | P4: 815 | Q4: 815 | R4: 815 | S4: 815 | T4: 815
A5: Stamp duty component | B5: 1891 | C5: $ | D5: Service costs | E5: =$B$7 -> 165 | F5: =$B$7 -> 165 | G5: 165 | H5: 165 | I5: 165 | J5: 165 | K5: 165 | L5: 165 | M5: 165 | N5: 165 | O5: 165 | P5: 165 | Q5: 165 | R5: 165 | S5: 165 | T5: 165
A6: Annual licensing costs | B6: 805 | C6: $ | D6: Electricity costs | E6: =$B$10*$B$9*$B$8/100 -> 176.8 | F6: 176.8 | G6: 176.8 | H6: 176.8 | I6: 176.8 | J6: 176.8 | K6: 176.8 | L6: 176.8 | M6: 176.8 | N6: 176.8 | O6: 176.8 | P6: 176.8 | Q6: 176.8 | R6: 176.8 | S6: 176.8 | T6: 176.8
A7: Annual service costs | B7: 165 | C7: $ | D7: GST on Electricity | E7: =0.1*E6 -> 17.68 | F7: =0.1*F6 -> 17.68 | G7: 17.68 | H7: 17.68 | I7: 17.68 | J7: 17.68 | K7: 17.68 | L7: 17.68 | M7: 17.68 | N7: 17.68 | O7: 17.68 | P7: 17.68 | Q7: 17.68 | R7: 17.68 | S7: 17.68 | T7: 17.68
A8: Annual km | B8: 13000 | C8: km p.a. | D8: RUC costs | E8: =$B$11*$B$8 -> 0 | F8: 0 | G8: 0 | H8: 0 | I8: 0 | J8: 0 | K8: 0 | L8: 0 | M8: 0 | N8: 0 | O8: 0 | P8: 0 | Q8: 0 | R8: 0 | S8: 0 | T8: 0
A9: Efficiency of EV | B9: 17 | C9: kWh/100 km | D9: Annual spend | E9: =SUM(E4:E8) -> 1174.48 | F9: 1174.48 | G9: 1174.48 | H9: 1174.48 | I9: 1174.48 | J9: 1174.48 | K9: 1174.48 | L9: 1174.48 | M9: 1174.48 | N9: 1174.48 | O9: 1174.48 | P9: 1174.48 | Q9: 1174.48 | R9: 1174.48 | S9: 1174.48 | T9: 1174.48
A10: Retail price of electricity | B10: 0.08 | C10: $/kWh | D10: Cumulative spend EV | E10: =B3+E9 -> 40174.48 | F10: =E10+F9 -> 41348.96 | G10: =F10+G9 -> 42523.44 | H10: 43697.92 | I10: 44872.4 | J10: 46046.88 | K10: 47221.36 | L10: 48395.84 | M10: 49570.32 | N10: 50744.8 | O10: 51919.28 | P10: 53093.76 | Q10: 54268.24 | R10: 55442.72 | S10: 56617.2 | T10: 57791.68
A11: Road user charge (flat) | B11: 0 | C11: $ /km | D11: Annual gov. Take | E11: =E8+E4 -> 815 | F11: 815 | G11: 815 | H11: 815 | I11: 815 | J11: 815 | K11: 815 | L11: 815 | M11: 815 | N11: 815 | O11: 815 | P11: 815 | Q11: 815 | R11: 815 | S11: 815 | T11: 815
D12: Cumulative gov. take EV | E12: =$B$4+$B$5 -> 5791 | F12: =E12+F11+F7 -> 6623.68 | G12: =F12+G11+G7 -> 7456.36 | H12: 8289.04 | I12: 9121.72 | J12: 9954.4 | K12: 10787.08 | L12: 11619.76 | M12: 12452.44 | N12: 13285.12 | O12: 14117.8 | P12: 14950.48 | Q12: 15783.16 | R12: 16615.84 | S12: 17448.52 | T12: 18281.2
A14: Your ICE car | E14: Year 0 | F14: Year 1 | G14: Year 2 | H14: Year 3 | I14: Year 4 | J14: Year 5 | K14: Year 6 | L14: Year 7 | M14: Year 8 | N14: Year 9 | O14: Year 10 | P14: Year 11 | Q14: Year 12 | R14: Year 13 | S14: Year 14 | T14: Year 15
A15: Drive away new car price | B15: 32000 | C15: $ | D15: Licensing costs | E15: =$B$18 -> 805 | F15: =$B$18 -> 805 | G15: 805 | H15: 805 | I15: 805 | J15: 805 | K15: 805 | L15: 805 | M15: 805 | N15: 805 | O15: 805 | P15: 805 | Q15: 805 | R15: 805 | S15: 805 | T15: 805
A16: GST component of new car | B16: 3200 | C16: $ | D16: Service costs | E16: =$B$19 -> 300 | F16: =$B$19 -> 300 | G16: 300 | H16: 300 | I16: 300 | J16: 300 | K16: 300 | L16: 300 | M16: 300 | N16: 300 | O16: 300 | P16: 300 | Q16: 300 | R16: 300 | S16: 300 | T16: 300
A17: Stamp duty component | B17: 1000 | C17: $ | D17: Fuel costs | E17: =$B$21*$B$20*$B$22/100 -> 1645.8 | F17: 1645.8 | G17: 1645.8 | H17: 1645.8 | I17: 1645.8 | J17: 1645.8 | K17: 1645.8 | L17: 1645.8 | M17: 1645.8 | N17: 1645.8 | O17: 1645.8 | P17: 1645.8 | Q17: 1645.8 | R17: 1645.8 | S17: 1645.8 | T17: 1645.8
A18: Annual licensing costs | B18: 805 | C18: $ | D18: GST on fuel | E18: =0.1*E17 -> 164.58 | F18: =0.1*F17 -> 164.58 | G18: 164.58 | H18: 164.58 | I18: 164.58 | J18: 164.58 | K18: 164.58 | L18: 164.58 | M18: 164.58 | N18: 164.58 | O18: 164.58 | P18: 164.58 | Q18: 164.58 | R18: 164.58 | S18: 164.58 | T18: 164.58
A19: Annual service costs | B19: 300 | C19: $ | D19: RUC costs | E19: =$B$23*$B$20 -> 0 | F19: 0 | G19: 0 | H19: 0 | I19: 0 | J19: 0 | K19: 0 | L19: 0 | M19: 0 | N19: 0 | O19: 0 | P19: 0 | Q19: 0 | R19: 0 | S19: 0 | T19: 0
A20: Annual km | B20: 13000 | C20: km p.a. | D20: Annual spend | E20: =SUM(E15:E19) -> 2915.38 | F20: 2915.38 | G20: 2915.38 | H20: 2915.38 | I20: 2915.38 | J20: 2915.38 | K20: 2915.38 | L20: 2915.38 | M20: 2915.38 | N20: 2915.38 | O20: 2915.38 | P20: 2915.38 | Q20: 2915.38 | R20: 2915.38 | S20: 2915.38 | T20: 2915.38
A21: Efficiency of ICE | B21: 6 | C21: l/100 km | D21: Cumulative spend ICE | E21: =B15+E20 -> 34915.38 | F21: =E21+F20 -> 37830.76 | G21: =F21+G20 -> 40746.14 | H21: 43661.52 | I21: 46576.9 | J21: 49492.28 | K21: 52407.66 | L21: 55323.04 | M21: 58238.42 | N21: 61153.8 | O21: 64069.18 | P21: 66984.56 | Q21: 69899.94 | R21: 72815.32 | S21: 75730.7 | T21: 78646.08
A22: Retail price of unleaded | B22: 2.11 | C22: $ per litre | D22: Fuel excise Take | E22: =$B$21*$B$20/100*0.423 -> 329.94 | F22: 329.94 | G22: 329.94 | H22: 329.94 | I22: 329.94 | J22: 329.94 | K22: 329.94 | L22: 329.94 | M22: 329.94 | N22: 329.94 | O22: 329.94 | P22: 329.94 | Q22: 329.94 | R22: 329.94 | S22: 329.94 | T22: 329.94
A23: Road user charge (flat) | B23: 0 | C23: $ /km | D23: Annual gov. Take | E23: =E15+E19+E22 -> 1134.94 | F23: 1134.94 | G23: 1134.94 | H23: 1134.94 | I23: 1134.94 | J23: 1134.94 | K23: 1134.94 | L23: 1134.94 | M23: 1134.94 | N23: 1134.94 | O23: 1134.94 | P23: 1134.94 | Q23: 1134.94 | R23: 1134.94 | S23: 1134.94 | T23: 1134.94
D24: Cumulative gov. take ICE | E24: =$B$16+$B$17+E23 -> 5334.94 | F24: =E24+F23+F18 -> 6634.46 | G24: =F24+G23+G18 -> 7933.98 | H24: 9233.5 | I24: 10533.02 | J24: 11832.54 | K24: 13132.06 | L24: 14431.58 | M24: 15731.1 | N24: 17030.62 | O24: 18330.14 | P24: 19629.66 | Q24: 20929.18 | R24: 22228.7 | S24: 23528.22 | T24: 24827.74

Sheet Sheet2

Sheet Sheet3
